Cogmind - Beta 13 @@@ ROGUE MODE // 2024.04.05 @ 21:21:05 Player: Metallia Result: Destroyed by H-55 Commando with Assault Rifle Performance ------------- Evolutions (2) 1000 Regions Visited (3) 600 Robots Destroyed (17) 85 Value Destroyed (474) 474 Prototype IDs (0) 0 Alien Tech Used (0) 0 Bonus (0) 0 TOTAL SCORE: 2159 Bonus ------- None Cogmind --------- Core Integrity 0/550 Matter 67/300 Energy 100/100 System Corruption 0% Temperature Cool (0) Movement Treading (225) Ox1 Location -8/Materials Parts ------- > --- POWER (2) -------- (None) > --- PROPULSION (2) --- Advanced Treads > --- UTILITY (4) ------ Large Storage Unit Advanced Visual Processing Unit > --- WEAPON (3) ------- Assault Cannon > --- INVENTORY (15) --- Light Treads Advanced Treads Aluminum Leg Aluminum Leg Hover Unit Heat Sink Heat Sink Heat Sink Small Matter Pod (0) Peak State ------------ > --- POWER ------------ Ion Engine Ion Engine > --- PROPULSION ------- Light Treads Light Treads > --- UTILITY ---------- Improved Heat Sink Large Storage Unit Compact Battery Advanced Visual Processing Unit > --- WEAPON ----------- Light Assault Rifle Light Assault Rifle Light Cannon > --- INVENTORY -------- Light Treads Aluminum Leg Aluminum Leg Hover Unit Heat Sink Heat Sink Heat Sink Small Matter Pod Medium Laser Light Cannon Grenade Launcher [Rating: 18] Favorites ----------- Power Light Ion Engine Engine Light Ion Engine Propulsion Light Treads Treads Light Treads Leg Aluminum Leg Wheel Wheel Hover Unit Hover Unit Utility Large Storage Unit Device Improved Heat Sink Storage Large Storage Unit Processor Advanced Visual Processing Unit Weapon Light Assault Rifle Energy Gun Medium Laser Ballistic Gun Light Assault Rifle Ballistic Cannon Light Cannon Launcher Grenade Launcher Build | -11 -10 -9 -8 ------- Run | Yrd Mat Mat Mat Slots Evolved 4 | . . 2 2 Power 1 | . . 1 . Propulsion . | . . . . Utility 2 | . . . 2 Weapon 1 | . . 1 . Parts Attached 36 | 6 11 7 12 Power 3 | 1 . 1 1 Engine 3 | 1 . 1 1 Core . | . . . . Reactor . | . . . . Propulsion 10 | 3 3 2 2 Treads 4 | . . 2 2 Leg 3 | 1 2 . . Wheel 2 | 2 . . . Hover 1 | . 1 . . Flight . | . . . . Utility 8 | . 4 1 3 Device 2 | . . . 2 Storage 4 | . 3 . 1 Processor 2 | . 1 1 . Hackware . | . . . . Protection . | . . . . Artifact . | . . . . Weapon 15 | 2 4 3 6 Energy Gun 3 | . 1 1 1 Energy Cannon . | . . . . Ballistic Gun 4 | 2 2 . . Ballistic Cannon 4 | . . 1 3 Launcher 4 | . 1 1 2 Special Weapon . | . . . . Impact Weapon . | . . . . Slashing Weapon . | . . . . Piercing Weapon . | . . . . Special Melee Weapon . | . . . . Unidentified Prototypes . | . . . . Parts Lost 13 | . . 1 12 Power 3 | . . 1 2 Propulsion 2 | . . . 2 Utility 2 | . . . 2 Weapon 6 | . . . 6 Highest Loss Streak 12 | . . 1 12 To Critical Strikes . | . . . . Average Slot Usage (%) 87 | . 94 87 75 Engine 11 | . 14 10 12 Treads 9 | . . 15 10 Leg 8 | . 15 6 . Wheel 4 | . 12 . . Device 1 | . . . 6 Storage 13 | . 15 11 15 Processor 9 | . 6 11 9 Energy Gun 5 | . 3 9 . Ballistic Gun 20 | . 21 22 12 Ballistic Cannon 1 | . . . 7 Launcher 1 | . 3 . 1 Naked Turns . | . . . . Heaviest Build 37 | 5 29 30 37 Greatest Support 42 | 20 20 40 42 Greatest Overweight (x) 1 | . 1 1 1 Average Overweight (x) . | . . . . Largest Inventory Capacity 15 | 5 15 15 15 Average Capacity 14 | 5 14 15 15 Most Carried 14 | 4 7 14 13 Average Carried 8 | 2 4 10 10 Final Capacity 15 | 5 15 15 15 Final Carried 14 | 3 5 14 9 Class Distribution -------------------- 42% | Mutant 23% | Gunner 23% | Skirmisher 9% | Scavenger-Skirmisher Dominant Class ---------------- Mutant | -10/Materials Skirmisher | -9/Materials Scavenger-Skirmisher | -8/Materials Resources | -11 -10 -9 -8 ----------- Run | Yrd Mat Mat Mat Matter Collected 567 | 268 36 130 133 Remotely . | . . . . Salvage Created 532 | 46 55 234 197 Parts 32 | . 8 15 9 Haulers Intercepted . | . . . . Recyclers Shooed . | . . . . Parts Field Recycled . | . . . . Retrieved Matter . | . . . . Parts Self-Destructed . | . . . . Prevented . | . . . . Kills | -11 -10 -9 -8 ------- Run | Yrd Mat Mat Mat Combat Hostiles Destroyed 13 | 1 3 5 4 Guns 8 | 1 3 2 2 Cannons 2 | . . . 2 AOE 3 | . . 3 . Classes Destroyed 7 | 1 2 3 1 Builder 1 | . . 1 . Recycler 2 | . . 1 1 Watcher 1 | . 1 . . Swarmer 3 | . 3 . . Grunt 7 | 1 . 4 2 Duelist 1 | . . . 1 Sentry 2 | . . 1 1 Best Kill Streak 4 | 1 3 4 2 Combat Bots Only 3 | 1 3 3 2 Max Kills in Single Turn 2 | 1 1 2 1 Gunslinging . | . . . . Exploded 1 | . . 1 . Melee . | . . . . Uniques/NPCs Destroyed . | . . . . Combat | -11 -10 -9 -8 -------- Run | Yrd Mat Mat Mat Hostile Shots Fired 177 | 5 9 15 148 Missed 48 | 3 3 1 41 Damage Taken 2065 | 23 86 170 1786 Core 627 | 12 38 23 554 Absorbed by Shields . | . . . . Core Remaining (%) 89 | 95 80 94 . Volleys Fired 61 | 4 9 9 39 Largest 3 | 2 2 3 3 Hottest 90 | 40 80 90 85 Shots Fired 136 | 8 18 27 83 Gun 94 | 8 16 21 49 Cannon 34 | . . 2 32 Launcher 8 | . 2 4 2 Special . | . . . . Kinetic 120 | 8 14 20 78 Thermal 8 | . 2 3 3 Explosive 8 | . 2 4 2 Electromagnetic . | . . . . Robot Hit Streak 11 | 6 3 4 11 Robot Miss Streak 5 | 1 5 3 3 Penetration Max . | . . . . Secondary Targets 2 | . 2 . . Max Gunslinging Chain 1 | . 1 . . Shots Hit Robots 73 | 6 7 11 49 Core Hits 34 | 2 5 11 16 Critical Kills 1 | . . 1 . Critical Parts Destroyed . | . . . . Critical Strikes 2 | . . 2 . Destroy 1 | . . 1 . Blast 1 | . . 1 . Melee Attacks . | . . . . Impact . | . . . . Slashing . | . . . . Piercing . | . . . . Sneak Attacks . | . . . . Combat Hostiles . | . . . . Follow-up Attacks . | . . . . Damage Inflicted 1268 | 52 116 357 743 Guns 448 | 52 52 87 257 Cannons 426 | . . 17 409 Explosions 382 | . 52 253 77 Melee . | . . . . Ramming 12 | . 12 . . Kinetic 811 | 52 52 79 628 Thermal 63 | . . 25 38 Explosive 382 | . 52 253 77 Electromagnetic . | . . . . Impact . | . . . . Slashing . | . . . . Piercing . | . . . . Highest Corruption . | . . . . Average Corruption . | . . . . Corruption Purged . | . . . . Corruption Blocked . | . . . . Overload Shots . | . . . . Overflow Damage . | . . . . Projectiles . | . . . . Explosions . | . . . . Melee . | . . . . Knockbacks 5 | . . . 5 Impact . | . . . . Kinetic 5 | . . . 5 Secondary . | . . . . Self-Inflicted Damage 42 | . 39 . 3 Shots 2 | . 1 . 1 Rammed . | . . . . Targets Rammed 1 | . 1 . . Kicked 1 | . 1 . . Crushed . | . . . . Highest Temperature 92 | 6 18 92 40 Average Temperature 17 | 6 12 29 13 Received Heat Transfer 825 | 12 . 96 717 Siege Activations . | . . . . Robots Corrupted . | . . . . Combat Hostiles . | . . . . Parts Fried . | . . . . Impact Corruptions . | . . . . Robots Melted . | . . . . Combat Hostiles . | . . . . Parts Melted . | . . . . Heat Transferred 185 | . . 74 111 Parts Sabotaged . | . . . . Parts Stolen . | . . . . Parts Stripped . | . . . . Power Chain Reactions . | . . . . Alert | -11 -10 -9 -8 ------- Run | Yrd Mat Mat Mat Peak Influence 165 | 20 151 132 165 Initial 63 | . 13 63 55 Average 89 | 1 106 87 107 Maximum Alert Level . | . . . . Low Security (%) 100 | 100 100 100 100 Level 1 . | . . . . Level 2 . | . . . . Level 3 . | . . . . Level 4 . | . . . . Level 5 . | . . . . High Security . | . . . . Max Security . | . . . . Squads Dispatched 4 | . . 2 2 Investigation 1 | . . 1 . Extermination . | . . . . Reinforcement 2 | . . 1 1 Assault . | . . . . Garrison 1 | . . . 1 Intercept . | . . . . Searches Triggered . | . . . . Construction Impeded 1 | . . 1 . Haulers Reinforced . | . . . . Active Scanning Responses . | . . . . Cargo Convoy Interrupts . | . . . . Stealth | -11 -10 -9 -8 --------- Run | Yrd Mat Mat Mat Distress Signals 2 | . . . 2 Communications Jammed . | . . . . Distress Signals . | . . . . Times Spotted 27 | 1 8 7 11 Peak Tracking Total 7 | 1 3 4 7 Tactical Retreats . | . . . . Traps | -11 -10 -9 -8 ------- Run | Yrd Mat Mat Mat Traps Triggered 2 | . 1 1 . Indirectly . | . . . . Trap Hack Attempts . | . . . . Triggered . | . . . . Disarmed . | . . . . Reprogrammed . | . . . . Reused . | . . . . Traps Extracted . | . . . . Installed . | . . . . Triggered . | . . . . Machines | -11 -10 -9 -8 ---------- Run | Yrd Mat Mat Mat Machines Disabled 1 | . . . 1 Max in Single Turn 1 | . . . 1 Machines Repaired . | . . . . Machines Dismantled . | . . . . Machines Sabotaged . | . . . . Overloaded Fab Kills . | . . . . Hacking | -11 -10 -9 -8 --------- Run | Yrd Mat Mat Mat Machines Accessed 3 | . 3 . . Terminals 2 | . 2 . . Fabricators . | . . . . Repair Stations . | . . . . Recycling Units 1 | . 1 . . Scanalyzers . | . . . . Garrison Access . | . . . . Total Hacks 7 | . 7 . . Successful 6 | . 6 . . Failed 1 | . 1 . . Catastrophic . | . . . . Database Lockouts . | . . . . Manual . | . . . . Terminals 3 | . 3 . . Fabricators . | . . . . Repair Stations . | . . . . Recycling Units 4 | . 4 . . Scanalyzers . | . . . . Garrison Access . | . . . . Terminal Hacks 3 | . 3 . . Record 1 | . 1 . . Alert Level 1 | . 1 . . Locate Traps 1 | . 1 . . Fabricator Hacks . | . . . . Repair Station Hacks . | . . . . Recycling Unit Hacks 3 | . 3 . . Recycle Component 2 | . 2 . . Process 1 | . 1 . . Scanalyzer . | . . . . Garrison Access Hacks . | . . . . Unauthorized Hacks . | . . . . Terminals . | . . . . Fabricators . | . . . . Repair Stations . | . . . . Recycling Units . | . . . . Scanalyzers . | . . . . Garrison Access . | . . . . Data Cores Recovered . | . . . . Used . | . . . . Hacking Detections 1 | . 1 . . Full Trace Events . | . . . . Feedback Events . | . . . . Feedback Blocked . | . . . . Robot Schematics Acquired . | . . . . Robots Built . | . . . . Authchips . | . . . . Time . | . . . . Total Robot Build Rating . | . . . . Part Schematics Acquired . | . . . . Parts Built . | . . . . Authchips . | . . . . Time . | . . . . Total Part Build Rating . | . . . . Parts Repaired . | . . . . Time . | . . . . Parts Recycled 2 | . 2 . . Recycled Matter 38 | . 38 . . Retrieved Matter . | . . . . Retrieved Components . | . . . . Parts Scanalyzed . | . . . . Part Schematics Acquired . | . . . . Parts Damaged . | . . . . Bothacking | -11 -10 -9 -8 ------------ Run | Yrd Mat Mat Mat Used RIF Installer . | . . . . Robots Hacked . | . . . . Non-combat . | . . . . Combat . | . . . . Robot Hacks Applied . | . . . . Relay Couplers Released . | . . . . Fabnet Peak Effective % . | . . . . Robots Rewired . | . . . . Allies Hacked . | . . . . Hacks Repelled . | . . . . Allies | -11 -10 -9 -8 -------- Run | Yrd Mat Mat Mat Total Allies . | . . . . Largest Group . | . . . . Highest-Rated Group . | . . . . Highest-Rated Ally . | . . . . Total Orders . | . . . . Ally Attacks . | . . . . Total Damage . | . . . . Kills . | . . . . Allies Corrupted . | . . . . Allies Melted . | . . . . Intel | -11 -10 -9 -8 ------- Run | Yrd Mat Mat Mat Robot Analysis Total . | . . . . Derelict Logs Recovered . | . . . . Drone Launches . | . . . . Drone Recoveries . | . . . . Exploration | -11 -10 -9 -8 ------------- Run | Yrd Mat Mat Mat Turns Passed 1212 | 96 371 559 186 Spaces Moved 686 | 102 245 307 32 Core 34 | 34 . . . Treads 267 | . . 235 32 Legs 169 | . 97 72 . Wheels 216 | 68 148 . . Hover . | . . . . Flight . | . . . . Fastest Speed 50 | 50 80 160 152 Average Speed 142 | 70 131 167 221 Slowest Speed 240 | 80 190 190 240 Overloaded Moves . | . . . . Propulsion Burnouts . | . . . . Robots Hopped . | . . . . Cave-ins Triggered . | . . . . Exploration Rate (%) 21 | 9 44 24 7 Regions Visited 3 Branch Regions . Pre-discovered Areas . | . . . . Known Exits Taken 1 | . 1 . . Unknown Exits Taken 2 | 1 . 1 . Scrap Searched . | . . . . Spaces Dug . | . . . . Terrain Destroyed 41 | . 14 18 9 Melee . | . . . . Projectile 1 | . . . 1 AOE 40 | . 14 18 8 Terrain Rammed . | . . . . Walls Destroyed . | . . . . Machines Disabled . | . . . . Actions | -11 -10 -9 -8 --------- Run | Yrd Mat Mat Mat Total 817 | 120 275 334 88 Wait . | . . . . Move 683 | 101 244 306 32 Hop . | . . . . Pick Up 33 | 8 9 12 4 Fast Attach . | . . . . Attach 23 | 6 5 2 10 Detach 2 | 1 . . 1 Swap 13 | . 6 5 2 Drop 1 | . 1 . . Fire 61 | 4 9 9 39 Melee . | . . . . Ram . | . . . . Kick 1 | . 1 . . Crush . | . . . . Escape Stasis . | . . . . Rewire . | . . . . Trap . | . . . . Miscellaneous . | . . . . Route ------- -11/Scrapyard -10/Materials -9/Materials -8/Materials History --------- Turn | Location | Event 2 | -11/Scrapyard | Met Revision 17 72 | -11/Scrapyard | Discovered new exit (range 8) 97 | -11/Scrapyard | Entered Materials 307 | -10/Materials | Build established: Mutant 429 | -10/Materials | Discovered new exit (range 15) 467 | -10/Materials | Identified exit to Materials 468 | -10/Materials | Entered another Materials area 468 | -9/Materials | Evolved 2 slots: Power x1, Weapon x1 845 | -9/Materials | Discovered new exit (range 5) 1027 | -9/Materials | Entered another Materials area 1027 | -8/Materials | Evolved 2 slots: Utility x2 1082 | -8/Materials | Garrison activated, responded to threat 1167 | -8/Materials | Core integrity fell below 50% 1204 | -8/Materials | Core integrity fell below 20% 1213 | -8/Materials | Destroyed by H-55 Commando with Assault Rifle Last Messages --------------- Lgt. Cannon destroyed. U-05 Engineer lays Concrete. Acquired Adv. Treads. U-05 Engineer lays Concrete. Slug penetrates Wall. U-05 Engineer lays Concrete. Acquired Assault Cannon. U-05 Engineer lays Concrete. G-47 Trooper knocked back. Penetrated by Slug. Lgt. Treads destroyed. U-05 Engineer builds a Door. Penetrated by Slug. U-05 Engineer builds a Wall. [Achievement: Oops] Penetrated by Slug. Acquired Adv. Treads. Acquired 67 matter. Penetrated by Slug. [Achievement: First Step to Greatness] Map ----- +----------------------------------------------------+ | ???????????????????????????????????????????????? | | ???????????????????????????????????????????????? | | ???????????????????????????????????????????????? | | ???????????????????????????????????????????????? | | ???????????????????????????????????????????????? | | ???????????????????????????????????????????????? | | ???????????????????????????????????????????????? | | ????????????????# ?????????????????????????????? | | ???????????????? ?????????????????????????????? | | ???????????????? ?????????????????????????????? | | ???????????????# "???????????????????????????? | | ???????????????# "G ??????????????????????????? | | ???????????????? "???????????????????????????? | | ???????????????? ???????????????????????????? | | ????????+???????? ???????????????????????????? | | ????????# ??????? ???????????????????????????? | | ????????? ???????# #???????????????????????????? | | ?????????# ????### #???????????????????????????? | | ?????????# ??### ; #####???????????????????????? | | ?????????# ?#;;;;;;;;;#???????????????????????? | | ?????????# ## !;#???????????????????????? | | ?????????# ; ;######????#?????????????? | | ?????????# ; g ; #;# ###???????????? | | ?????????# u%]g= # ?????????? | | ?????????# + !*=%=%% + ?????????? | | ???????????### ] @u* #???????????? | | ????????????## ! ]% #### #???????????? | | ????????????## u*|! # ##??????????????????? | | ????????????## %== ;# #???????????????????? | | ???????????######+#;;;;# #???????????????????? | | ???????????# ! #???????????????????? | | ???????????# !* #???????????????????? | | ???????????# h #???????????????????? | | ???????????##### #???????????????????? | | ???????????????# #???????????????????? | | ??????????????## % #???????????????????? | | ??????????????## #???????????????????? | | ??????????????## #???????????????????? | | ??????????????## #???????????????????? | | ???????????????# #???????????????????? | | ???????????????# = #???????????????????? | | ?????????????? # %! """ #???????????????????? | | ?????????????? # = """" #???????????????????? | | ?????????????? + % """" #???????????????????? | | ????????????? # % """"" +???????????????????? | | ????????????? # %""??? #???????????????????? | | ?????????????#?# % ??? #???????????????????? | | ??????????????? ????#???????????????????? | | ??????????????? ????????????????????????? | | ??????????????? ????????????????????????? | +----------------------------------------------------+ Best States ------------- Heat Dissipation 45 Energy Generation 15 Energy Capacity 600 Matter Stores 300 Matter Capacity 350 Sight Range 20 Terrain Scan Density 10 Evasion (%) 50 Recoil Reduction 2 Item Schematics ----------------- None Robot Schematics ------------------ None Fabricated ------------ Nothing Alien Tech Used ----------------- None Achievements -------------- Crack Shot First Step to Greatness Oops Storm Trooper Troublemaker Uninvited Guest Challenges ------------ None Game ------ Seed LauncherLaserWell Manual? 0 Play Time 00:28:44 Cumulative 0.4 hours Start 2024.04.05 @ 20:50:17 End 2024.04.05 @ 21:21:05 Sessions 1 Manual Loads 0 Difficulty Rogue Special Mode None Game No. 1 Rogue 1 Adventurer 0 Explorer 0 Win Type - Total 0 Types 0/0/0/0/0/0/0/0/0 Lore% 0 Gallery% 1 Achievement% 2 Wizard Run 0 Options --------- Layout 1 ASCII 0 Keyboard 0 Movement Arrows Keybinds 0 Fullscreen 1 Font 32/SmallcapsGlow Map View 77x35 Zoom Use 0% Tactical HUD 0 Map Filters NONE Filters NONE Steam 1 RUN: 75a67358-f918-4fe0-b26a-45aeb9ca0b0a